[Event "XI Paracin Festival 2018"]
[Site "Paracin"]
[Date "2018.07.06"]
[Round "1"]
[White "Gukesh, Dommaraju"]
[Black "Ersahin, Bulent"]
[Result "1-0"]
[ECO "A05"]
[WhiteElo "2433"]
[BlackElo "2179"]
[Annotator "NA"]
[PlyCount "113"]
[EventDate "2018.07.06"]
[EventType "swiss"]
[EventCountry "SRB"]
[SourceTitle "playchess.com"]
[Source "ChessBase"]
[SourceQuality "1"]
[TimeControl "5400+30"]

1. Nf3 {[%emt 0:00:06]} Nf6 {[%emt 0:00:00]} 2. g3 {[%emt 0:00:00]} g6 {[%emt 0:00:00]} 3. Bg2 {[%emt 0:00:00]} Bg7 {[%emt 0:00:00]} 4. O-O {[%emt 0:00:03]} O-O {[%emt 0:00:00]} 5. d4 {[%emt 0:00:45]} c5 {[%emt 0:01:07]} 6. dxc5 {[%emt 0:09:19]} Na6 {[%emt 0:03:30]} 7. Be3 {[%emt 0:06:41]} Qc7 {[%emt 0:01:11] A49: 1 d4 Nf6 2 Nf3 g6 3 g3: Anti-King's Indian systems} 8. Nc3 {[%emt 0:13:55]} Nxc5 {[%emt 0:04:24]} 9. Nb5 {[%emt 0:00:30]} Qb6 {[%emt 0:03:44]} (9... Qc6 10. a4 Ng4 11. Bd4 Bxd4 12. Nfxd4 Qb6 13. b4 Na6 14. Qd2 d6 15. c4 {½-½ (46) Meier,G (2630)-Bacrot,E (2695) chess.com INT 2017}) 10. c4 {[%emt 0:06:49]} a5 {[%emt 0:12:40]} 11. Bd4 $146 {[%emt 0:03:26]} ({Predecessor:} 11. a3 Ng4 12. Bd4 a4 13. Bxg7 Kxg7 14. Qd4+ Nf6 15. Nc3 {½-½ (39) Karlik,V (2294)-Piza,V (2264) Nachod 2013}) 11... d6 {[%emt 0:01:01]} 12. b3 {[%emt 0:01:46]} Bd7 {[%emt 0:01:13]} 13. Nc3 {[%emt 0:00:14]} Bc6 {[%emt 0:01:57]} 14. Rb1 {[%emt 0:03:17]} Rfc8 {[%emt 0:06:51]} 15. Ne1 {[%emt 0:02:49]} Bxg2 {[%emt 0:06:44]} 16. Nxg2 {[%emt 0:00:08]} Qd8 {[%emt 0:02:35]} 17. Nf4 {[%emt 0:03:40]} Ncd7 {[%emt 0:04:09]} 18. Nfd5 {[%emt 0:03:18]} e6 {[%emt 0:04:00]} 19. Nxf6+ {[%emt 0:03:00]} Nxf6 {[%emt 0:00:42]} 20. e4 Ra6 {[%emt 0:03:01]} 21. Qe2 {[%emt 0:02:34]} Nd7 {[%emt 0:03:36]} 22. Bxg7 {[%emt 0:00:08]} Kxg7 {[%emt 0:00:05]} 23. Rfd1 {[%emt 0:00:19]} Qf6 {[%emt 0:01:27]} 24. Qe3 {[%emt 0:04:45]} Qe5 {[%emt 0:10:40]} 25. Rd2 {[%emt 0:04:26]} f5 {[%emt 0:06:10]} 26. Rbd1 {[%emt 0:00:54]} Rcc6 {[%emt 0:03:06]} 27. exf5 {[%emt 0:07:39]} (27. Rd4 $18 {und Weiss behält klar die Oberhand.}) 27... Qxe3 {[%emt 0:00:43]} 28. fxe3 {[%emt 0:00:02]} Ne5 {[%emt 0:00:56]} 29. Kg2 {[%emt 0:01:05]} gxf5 {[%emt 0:00:07]} 30. Nb5 {[%emt 0:00:31]} Ng4 {[%emt 0:02:23]} 31. Kf3 {[%emt 0:01:04]} Kf6 {[%emt 0:04:11]} 32. e4 {[%emt 0:00:22]} Ne5+ {[%emt 0:00:37]} 33. Ke2 {[%emt 0:00:31]} a4 {[%emt 0:02:38]} 34. exf5 {[%emt 0:02:33]} axb3 {[%emt 0:00:15]} 35. axb3 {[%emt 0:00:06]} exf5 {[%emt 0:00:53]} 36. Rxd6+ {[%emt 0:01:46]} Ke7 {[%emt 0:02:03]} 37. R6d5 {[%emt 0:01:00]} Ra2+ {[%emt 0:01:04]} 38. R1d2 {[%emt 0:00:32]} Rxd2+ {[%emt 0:00:06]} 39. Kxd2 $18 {[%emt 0:00:36]} Nf3+ {[%emt 0:01:18]} 40. Ke3 {[%emt 0:00:43]} Nxh2 {[%emt 0:00:20]} 41. Nd4 {[%emt 0:00:26]} Rb6 {[%emt 0:02:29]} 42. Nxf5+ {[%emt 0:00:09]} Ke8 {[%emt 0:00:52]} 43. Nd6+ {[%emt 0:04:20]} Kf8 {[%emt 0:00:52]} 44. Rd3 {[%emt 0:00:10]} Ng4+ {[%emt 0:00:28]} 45. Kf4 {[%emt 0:00:42]} Nf6 {[%emt 0:01:05]} 46. Ke5 {[%emt 0:00:52]} Nd7+ {[%emt 0:01:46]} 47. Kd5 {[%emt 0:00:54]} Nf6+ {[%emt 0:00:43]} 48. Ke6 {[%emt 0:06:20]} Ne4 {[%emt 0:00:27]} 49. Rf3+ {[%emt 0:01:21]} Kg8 {[%emt 0:01:05]} 50. Kd5 {[%emt 0:01:12]} Nd2 {[%emt 0:01:53]} 51. c5 {[%emt 0:01:28]} Rb4 {[%emt 0:00:37]} 52. Rf7 {[%emt 0:01:00]} Rxb3 {[%emt 0:00:59]} 53. Rxb7 {[%emt 0:00:30]} Rd3+ {[%emt 0:00:45]} 54. Ke6 {[%emt 0:00:37]} Re3+ {[%emt 0:00:28]} 55. Kd7 {[%emt 0:00:28]} Rc3 {[%emt 0:00:40]} 56. c6 {[%emt 0:00:27]} Nf3 {[%emt 0:00:15]} 57. c7 {[%emt 0:00:36]} 1-0

[Event "XI Paracin Festival 2018"]
[Site "Paracin"]
[Date "2018.07.06"]
[Round "1"]
[White "Radovanovic, Nikola"]
[Black "Cholleti, Sahajasri"]
[Result "1-0"]
[ECO "E43"]
[WhiteElo "2425"]
[BlackElo "2169"]
[Annotator "NA"]
[PlyCount "73"]
[EventDate "2018.07.06"]
[EventType "swiss"]
[EventCountry "SRB"]
[SourceTitle "playchess.com"]
[Source "ChessBase"]
[SourceQuality "1"]
[TimeControl "5400+30"]

1. d4 {[%emt 0:00:00]} Nf6 {[%emt 0:00:00]} 2. c4 {[%emt 0:00:00]} e6 {[%emt 0:00:00]} 3. Nc3 {[%emt 0:00:21]} Bb4 {[%emt 0:00:44]} 4. e3 {[%emt 0:00:48]} b6 {[%emt 0:01:46]} 5. f3 {[%emt 0:00:14]} c5 {[%emt 0:04:53]} 6. d5 {[%emt 0:00:18]} d6 {[%emt 0:03:41] E43: Nimzo-Indian: Rubinstein: 4...b6} 7. e4 {[%emt 0:01:04]} b5 {[%emt 0:04:47]} 8. Bd2 {[%emt 0:07:03]} a6 {[%emt 0:09:45]} 9. a4 {[%emt 0:09:36]} bxc4 $146 {[%emt 0:04:55]} ({Predecessor:} 9... Ba5 10. axb5 axb5 11. Kf2 b4 12. Nce2 O-O 13. Ng3 Re8 14. b3 Nbd7 15. Be2 {0-1 (35) Toth,E (2427)-Donchenko,A (2574) Budapest 2018}) 10. Bxc4 {[%emt 0:00:47]} e5 {[%emt 0:03:31]} 11. Nge2 {[%emt 0:03:49]} Nbd7 {[%emt 0:06:29]} 12. Ng3 {[%emt 0:05:01]} Nf8 {[%emt 0:05:50]} 13. O-O {[%emt 0:03:07]} Ng6 {[%emt 0:00:08]} 14. Be3 {[%emt 0:19:35]} Bxc3 {[%emt 0:09:28]} 15. bxc3 {[%emt 0:00:43]} O-O {[%emt 0:00:19]} 16. a5 {[%emt 0:06:28]} Bd7 {[%emt 0:08:07]} 17. Qd3 {[%emt 0:05:24]} Qc7 {[%emt 0:07:33]} 18. Rfb1 {[%emt 0:09:21]} Ra7 {[%emt 0:10:34]} 19. Rb6 {[%emt 0:08:47]} Rfa8 {[%emt 0:05:41]} 20. Rxa6 {[%emt 0:08:29]} Rxa6 {[%emt 0:00:46]} 21. Bxa6 {[%emt 0:00:07]} Ra7 {[%emt 0:00:44] [#]} 22. Bg5 $1 {[%emt 0:02:53]} Qd8 {[%emt 0:04:19]} 23. Nh5 {[%emt 0:02:01]} Qa8 {[%emt 0:01:15]} 24. Bxf6 {[%emt 0:01:11]} Rxa6 {[%emt 0:00:07]} 25. Bxg7 {[%emt 0:00:35]} Rxa5 $18 {[%emt 0:00:34]} 26. Rxa5 {[%emt 0:02:22]} Qxa5 {[%emt 0:00:02]} 27. Bh6 {[%emt 0:00:28]} Bb5 {[%emt 0:00:45]} 28. Qe3 {[%emt 0:00:22]} Qa1+ {[%emt 0:02:02]} 29. Kf2 {[%emt 0:00:16]} Qa2+ {[%emt 0:01:49]} 30. Kg3 {[%emt 0:00:53]} Bf1 {[%emt 0:01:15]} 31. Qf2 {[%emt 0:00:31]} Qc4 {[%emt 0:00:12]} 32. Nf6+ {[%emt 0:01:09]} Kh8 {[%emt 0:00:02]} 33. Qb2 {[%emt 0:00:20]} Qb5 {[%emt 0:00:18]} 34. Qxb5 {[%emt 0:00:07]} Bxb5 {[%emt 0:00:04]} 35. h4 {[%emt 0:00:49]} Ne7 {[%emt 0:01:07]} 36. Bf8 {[%emt 0:00:19]} Nc8 {[%emt 0:00:01]} 37. h5 {[%emt 0:00:12]} 1-0

[Event "XI Paracin Festival 2018"]
[Site "Paracin"]
[Date "2018.07.06"]
[Round "1"]
[White "Gadimbayli, Abdulla Azar"]
[Black "Baltic, Fatih"]
[Result "1-0"]
[ECO "C07"]
[WhiteElo "2420"]
[BlackElo "2157"]
[Annotator "RC"]
[PlyCount "73"]
[EventDate "2018.07.06"]
[EventType "swiss"]
[EventCountry "SRB"]
[SourceTitle "playchess.com"]
[Source "ChessBase"]
[SourceQuality "1"]
[TimeControl "5400+30"]

1. e4 {[%emt 0:00:10]} e6 {[%emt 0:00:00]} 2. d4 {[%emt 0:00:20]} d5 {[%emt 0:01:37]} 3. Nd2 {[%emt 0:00:29]} c5 {[%emt 0:00:05]} 4. exd5 {[%emt 0:00:04]} Qxd5 {[%emt 0:00:07]} 5. Ngf3 {[%emt 0:00:04]} cxd4 {[%emt 0:00:06]} 6. Bc4 {[%emt 0:00:03]} Qd8 {[%emt 0:00:03]} 7. O-O {[%emt 0:00:26]} Nf6 {[%emt 0:00:23]} 8. Nb3 {[%emt 0:01:00]} a6 {[%emt 0:00:25]} 9. Nbxd4 {[%emt 0:03:07]} Qc7 {[%emt 0:01:03]} 10. Qe2 {[%emt 0:03:07]} b5 {[%emt 0:08:33]} 11. Bb3 {[%emt 0:08:57]} Be7 {[%emt 0:03:57]} 12. Re1 {[%emt 0:06:57]} O-O {[%emt 0:08:38]} 13. a4 {[%emt 0:27:09]} b4 {[%emt 0:04:15]} 14. Nxe6 {[%emt 0:05:02]} fxe6 {[%emt 0:02:05]} 15. Bxe6+ {[%emt 0:00:21]} Bxe6 {[%emt 0:01:12]} 16. Qxe6+ {[%emt 0:00:05]} Rf7 {[%emt 0:03:17]} 17. Ng5 {[%emt 0:10:24]} Bf8 {[%emt 0:04:17]} 18. Bf4 {[%emt 0:07:08]} Qd7 {[%emt 0:00:59]} 19. Bxb8 {[%emt 0:00:43]} Rxb8 {[%emt 0:01:15]} 20. Nxf7 {[%emt 0:00:05]} Qxf7 {[%emt 0:01:51]} 21. Qxa6 {[%emt 0:02:05]} Bc5 {[%emt 0:01:33]} 22. Qe2 {[%emt 0:01:32]} Rf8 {[%emt 0:02:30]} 23. Kh1 {[%emt 0:03:32]} Qa7 {[%emt 0:04:25]} 24. f3 {[%emt 0:00:55]} Kh8 {[%emt 0:00:50]} 25. a5 {[%emt 0:05:23]} Nh5 {[%emt 0:02:25]} 26. Qb5 {[%emt 0:02:25]} Nf6 {[%emt 0:04:51]} 27. a6 {[%emt 0:01:48]} Rb8 {[%emt 0:00:04]} 28. Qc6 {[%emt 0:01:35]} h6 {[%emt 0:00:31]} 29. Re5 {[%emt 0:02:32]} Bd4 {[%emt 0:04:03]} 30. Rb5 {[%emt 0:00:23]} Rxb5 {[%emt 0:00:31]} 31. Qxb5 {[%emt 0:00:06]} Bxb2 {[%emt 0:00:05]} 32. Rb1 {[%emt 0:02:56]} Qe3 {[%emt 0:04:33]} 33. Qb8+ {[%emt 0:02:07]} Kh7 {[%emt 0:00:25]} 34. a7 {[%emt 0:01:05]} Bc1 {[%emt 0:00:50]} 35. Qxb4 {[%emt 0:00:13]} Ba3 {[%emt 0:01:35]} 36. Qa5 {[%emt 0:01:41]} Bd6 {[%emt 0:00:52]} 37. Qf5+ {[%emt 0:00:13]} 1-0

[Event "XI Paracin Festival 2018"]
[Site "Paracin"]
[Date "2018.07.06"]
[Round "1"]
[White "Abramovic, Bosko"]
[Black "Dezelin, Milan"]
[Result "1-0"]
[ECO "A45"]
[WhiteElo "2409"]
[BlackElo "2146"]
[Annotator "ChessBase"]
[PlyCount "61"]
[EventDate "2018.07.06"]
[EventType "swiss"]
[EventCountry "SRB"]
[SourceTitle "playchess.com"]
[Source "ChessBase"]
[SourceQuality "1"]
[TimeControl "5400+30"]

1. d4 {[%emt 0:00:00]} Nf6 {[%emt 0:00:00]} 2. g3 {[%emt 0:00:00]} g6 {[%emt 0:04:26]} 3. Bg2 {[%emt 0:00:00]} Bg7 {[%emt 0:00:16]} 4. e4 {[%emt 0:00:00]} d6 {[%emt 0:00:05]} 5. Nc3 {[%emt 0:00:08]} O-O {[%emt 0:03:23]} 6. Nge2 {[%emt 0:00:06]} c6 {[%emt 0:05:15]} 7. a4 {[%emt 0:00:07]} a5 {[%emt 0:01:37]} 8. O-O {[%emt 0:00:48]} e5 {[%emt 0:01:50]} 9. h3 {[%emt 0:02:34]} Nbd7 {[%emt 0:06:25]} 10. Be3 {[%emt 0:00:22]} Re8 {[%emt 0:02:28]} 11. g4 {[%emt 0:03:58]} h5 {[%emt 0:04:04]} 12. f3 {[%emt 0:00:47]} hxg4 {[%emt 0:05:06]} 13. hxg4 {[%emt 0:00:09]} exd4 {[%emt 0:00:18]} 14. Bxd4 {[%emt 0:00:13]} Ne5 {[%emt 0:00:40]} 15. g5 {[%emt 0:03:35]} Nh5 {[%emt 0:01:54]} 16. f4 {[%emt 0:00:24]} Ng4 {[%emt 0:05:09]} 17. Rf3 {[%emt 0:14:00]} Bf8 {[%emt 0:05:59]} 18. Bh3 {[%emt 0:07:01]} f5 {[%emt 0:10:44]} 19. gxf6 {[%emt 0:00:41]} Ngxf6 {[%emt 0:01:06]} 20. Qd3 {[%emt 0:02:08]} Ng4 {[%emt 0:15:59]} 21. Kg2 {[%emt 0:03:40]} d5 {[%emt 0:04:18]} 22. exd5 {[%emt 0:01:46]} Bf5 {[%emt 0:00:34]} 23. Qd2 {[%emt 0:00:15]} cxd5 {[%emt 0:00:48]} 24. Rh1 {[%emt 0:00:58]} Bh6 {[%emt 0:12:02]} 25. Ng3 {[%emt 0:03:55]} Bxf4 {[%emt 0:02:41]} 26. Rxf4 {[%emt 0:00:45]} Qg5 {[%emt 0:00:02]} 27. Nxh5 {[%emt 0:04:20]} Ne3+ {[%emt 0:04:56]} 28. Kf2 {[%emt 0:06:02]} Bxh3 {[%emt 0:01:16]} 29. Nf6+ {[%emt 0:03:00]} Kf7 {[%emt 0:00:31]} 30. Nfxd5+ {[%emt 0:00:17]} Kg8 {[%emt 0:01:08]} 31. Rg1 {[%emt 0:00:30]} 1-0

[Event "XI Paracin Festival 2018"]
[Site "Paracin"]
[Date "2018.07.06"]
[Round "1"]
[White "Radovanovic, Mihajlo"]
[Black "Konstantinov, Aleksandar"]
[Result "1-0"]
[ECO "B90"]
[WhiteElo "2402"]
[BlackElo "2133"]
[Annotator "ChessBase"]
[PlyCount "79"]
[EventDate "2018.07.06"]
[EventType "swiss"]
[EventCountry "SRB"]
[SourceTitle "playchess.com"]
[Source "ChessBase"]
[SourceQuality "1"]
[TimeControl "5400+30"]

1. Nf3 {[%emt 0:00:00]} c5 {[%emt 0:00:00]} 2. e4 {[%emt 0:00:22]} d6 {[%emt 0:00:00]} 3. d4 {[%emt 0:02:15]} cxd4 {[%emt 0:00:04]} 4. Nxd4 {[%emt 0:00:05]} Nf6 {[%emt 0:00:04]} 5. Nc3 {[%emt 0:00:06]} a6 {[%emt 0:00:03]} 6. h3 {[%emt 0:08:00]} e5 {[%emt 0:04:26]} 7. Nde2 {[%emt 0:00:06]} Be7 {[%emt 0:00:19]} 8. g4 {[%emt 0:00:39]} Be6 {[%emt 0:09:33]} 9. Bg2 {[%emt 0:00:20]} O-O {[%emt 0:02:10]} 10. Be3 {[%emt 0:01:58]} b5 {[%emt 0:07:24]} 11. Ng3 {[%emt 0:05:36]} Nbd7 {[%emt 0:07:46]} 12. O-O {[%emt 0:22:04]} Nb6 {[%emt 0:04:16]} 13. b3 {[%emt 0:03:50]} Rc8 {[%emt 0:04:33]} 14. Qd2 {[%emt 0:04:54]} Qc7 {[%emt 0:00:12]} 15. Nd5 {[%emt 0:00:42]} Nbxd5 {[%emt 0:01:39]} 16. exd5 {[%emt 0:00:08]} Bd7 {[%emt 0:00:02]} 17. Rac1 {[%emt 0:01:13]} Qc3 {[%emt 0:02:47]} 18. Qxc3 {[%emt 0:01:22]} Rxc3 {[%emt 0:00:08]} 19. g5 {[%emt 0:00:04]} Ne8 {[%emt 0:00:07]} 20. Ne4 {[%emt 0:00:07]} Rc8 {[%emt 0:00:22]} 21. f4 {[%emt 0:08:40]} f5 {[%emt 0:09:24]} 22. fxe5 {[%emt 0:08:05]} dxe5 {[%emt 0:03:06]} 23. d6 {[%emt 0:00:07]} fxe4 {[%emt 0:01:30]} 24. dxe7 {[%emt 0:00:11]} Rf7 {[%emt 0:01:04]} 25. b4 {[%emt 0:10:00]} Rxe7 {[%emt 0:10:33]} 26. Bc5 {[%emt 0:00:06]} Rf7 {[%emt 0:00:05]} 27. Rxf7 {[%emt 0:02:32]} Kxf7 {[%emt 0:00:09]} 28. Rf1+ {[%emt 0:00:09]} Kg6 {[%emt 0:05:28]} 29. h4 {[%emt 0:03:19]} Bc6 {[%emt 0:00:26]} 30. Bh3 {[%emt 0:00:07]} Rc7 {[%emt 0:02:05]} 31. Bb6 {[%emt 0:01:32]} Rb7 {[%emt 0:01:01]} 32. Be3 {[%emt 0:04:05]} Nd6 {[%emt 0:01:03]} 33. Bc5 {[%emt 0:02:39]} Nc4 {[%emt 0:01:50]} 34. Kh2 {[%emt 0:01:27]} Bd7 {[%emt 0:03:52]} 35. Bg2 {[%emt 0:00:36]} Bf5 {[%emt 0:01:48]} 36. Kg3 {[%emt 0:00:08]} Rc7 {[%emt 0:04:21]} 37. Rd1 {[%emt 0:01:58]} Kf7 {[%emt 0:02:09]} 38. Rd8 {[%emt 0:00:34]} Ke6 {[%emt 0:04:05]} 39. h5 {[%emt 0:00:46]} e3 {[%emt 0:02:38]} 40. Bd5# {Kxd5} 1-0

[Event "XI Paracin Festival 2018"]
[Site "Paracin"]
[Date "2018.07.06"]
[Round "1"]
[White "Rahul, Srivatshav P"]
[Black "Pajcin, Lav"]
[Result "1-0"]
[ECO "D35"]
[WhiteElo "2397"]
[BlackElo "2130"]
[Annotator "NA"]
[PlyCount "97"]
[EventDate "2018.07.06"]
[EventType "swiss"]
[EventCountry "SRB"]
[SourceTitle "playchess.com"]
[Source "ChessBase"]
[SourceQuality "1"]
[TimeControl "5400+30"]

1. d4 {[%emt 0:00:00]} d5 {[%emt 0:00:00]} 2. c4 {[%emt 0:00:18]} e6 {[%emt 0:00:05]} 3. Nc3 {[%emt 0:00:07]} Nf6 {[%emt 0:00:33]} 4. cxd5 {[%emt 0:00:07]} exd5 {[%emt 0:00:09]} 5. Bg5 {[%emt 0:00:09]} Be7 {[%emt 0:00:48]} 6. e3 {[%emt 0:00:11]} O-O {[%emt 0:00:56]} 7. Bd3 {[%emt 0:00:07]} c6 {[%emt 0:01:19]} 8. Qc2 {[%emt 0:00:48]} Nbd7 {[%emt 0:00:46]} 9. Nf3 {[%emt 0:00:11]} Re8 {[%emt 0:00:49] LiveBook: 3098 Games} 10. O-O {[%emt 0:00:14]} Nf8 $14 {[%emt 0:00:29]} 11. h3 {[%emt 0:00:07]} Ne4 {[%emt 0:02:22]} 12. Bf4 {[%emt 0:00:11]} Nxc3 {[%emt 0:04:40]} 13. bxc3 Bd6 {[%emt 0:00:16]} 14. Bxd6 {[%emt 0:00:23]} Qxd6 {[%emt 0:00:13]} 15. c4 {[%emt 0:00:13]} dxc4 {[%emt 0:01:29]} 16. Bxc4 {[%emt 0:00:21]} Be6 {[%emt 0:01:52]} 17. Rab1 {[%emt 0:00:13]} Re7 {[%emt 0:02:08]} 18. Rfc1 {[%emt 0:04:31]} Bd5 {[%emt 0:02:39]} 19. Bxd5 {[%emt 0:06:53]} Qxd5 {[%emt 0:00:12]} 20. Qc4 {[%emt 0:00:56]} Qxc4 {[%emt 0:03:34]} 21. Rxc4 {[%emt 0:00:23]} Ne6 {[%emt 0:04:00]} 22. a4 {[%emt 0:00:15]} Rae8 {[%emt 0:03:36]} 23. a5 {[%emt 0:01:07]} Nd8 {[%emt 0:02:17]} 24. Ne5 {[%emt 0:01:49]} f6 {[%emt 0:02:11]} 25. Nd3 {[%emt 0:00:13]} a6 {[%emt 0:08:43]} 26. Nc5 {[%emt 0:04:07]} Rc7 {[%emt 0:01:45]} 27. Rcb4 {[%emt 0:00:43]} Ree7 {[%emt 0:00:24]} 28. g4 {[%emt 0:00:20]} Kf7 {[%emt 0:01:46]} 29. Kg2 {[%emt 0:00:20]} Ke8 {[%emt 0:04:10]} 30. R4b3 {[%emt 0:01:50]} Kf7 {[%emt 0:01:43]} 31. f4 {[%emt 0:00:18]} g6 {[%emt 0:06:21]} 32. f5 {[%emt 0:06:51]} gxf5 {[%emt 0:03:01]} 33. gxf5 {[%emt 0:00:09]} Ke8 {[%emt 0:01:19]} 34. Kf3 {[%emt 0:01:30]} Rg7 {[%emt 0:01:09]} 35. e4 {[%emt 0:00:09]} h5 {[%emt 0:02:49]} 36. e5 {[%emt 0:01:28]} fxe5 {[%emt 0:01:42]} 37. dxe5 {[%emt 0:00:13]} Rcf7 {[%emt 0:01:52]} 38. Kf4 {[%emt 0:08:34]} Rg2 {[%emt 0:00:30]} 39. Ne4 {[%emt 0:04:02]} Kf8 {[%emt 0:03:13]} 40. Nd6 {[%emt 0:01:29]} Rd7 {[%emt 0:01:55]} 41. Rg3 {[%emt 0:01:24]} Rf2+ {[%emt 0:00:53]} 42. Ke3 {[%emt 0:00:18]} Ra2 {[%emt 0:00:31]} 43. Rbg1 {[%emt 0:00:33]} Ra3+ {[%emt 0:00:20]} 44. Kf4 {[%emt 0:00:16]} Ra4+ {[%emt 0:00:40]} 45. Kg5 Rg7+ {[%emt 0:01:19]} 46. Kf6 {[%emt 0:02:39]} Rxg3 {[%emt 0:00:23]} 47. Rxg3 {[%emt 0:00:06]} c5 {[%emt 0:00:35]} 48. e6 {[%emt 0:00:52]} Nc6 {[%emt 0:00:13]} 49. Rg7 1-0

[Event "XI Paracin Festival 2018"]
[Site "Paracin"]
[Date "2018.07.06"]
[Round "1"]
[White "Olson, Hamish"]
[Black "Shyam, Sundar M"]
[Result "0-1"]
[ECO "A46"]
[WhiteElo "2229"]
[BlackElo "1345"]
[Annotator "NA"]
[PlyCount "46"]
[EventDate "2018.07.06"]
[EventType "swiss"]
[EventCountry "SRB"]
[SourceTitle "playchess.com"]
[Source "ChessBase"]
[SourceQuality "1"]
[TimeControl "5400+30"]

1. d4 {[%emt 0:00:00]} Nf6 {[%emt 0:00:00]} 2. Nf3 {[%emt 0:00:00]} d5 {[%emt 0:00:19]} 3. c4 {[%emt 0:00:09]} e6 {[%emt 0:00:01]} 4. e3 {[%emt 0:00:14]} a6 {[%emt 0:00:34]} 5. Nbd2 {[%emt 0:04:34]} b6 {[%emt 0:02:27]} 6. Bd3 {[%emt 0:01:27]} Bb7 {[%emt 0:00:05]} 7. O-O {[%emt 0:00:27]} Nbd7 {[%emt 0:03:47]} 8. b3 {[%emt 0:02:02]} Ne4 {[%emt 0:02:58]} 9. Bb2 $11 {[%emt 0:05:50]} Bd6 {[%emt 0:05:40]} 10. Ne5 {[%emt 0:06:23]} Bxe5 {[%emt 0:22:01]} 11. dxe5 {[%emt 0:00:25]} Ndc5 {[%emt 0:00:03]} 12. Nxe4 {[%emt 0:16:47]} dxe4 {[%emt 0:00:14]} 13. Bc2 {[%emt 0:03:13]} Qg5 {[%emt 0:00:50]} 14. Qd4 {[%emt 0:06:38]} Rd8 {[%emt 0:06:07]} 15. Qc3 {[%emt 0:01:21]} Nd3 {[%emt 0:01:03]} 16. c5 {[%emt 0:15:24]} bxc5 {[%emt 0:02:02]} 17. b4 {[%emt 0:06:56]} O-O {[%emt 0:05:20]} 18. bxc5 {[%emt 0:03:40]} Bc6 {[%emt 0:00:03]} 19. a4 {[%emt 0:03:04]} h5 {[%emt 0:08:58]} 20. Rab1 {[%emt 0:01:49]} h4 {[%emt 0:08:37]} 21. h3 {[%emt 0:02:29]} Rd5 {[%emt 0:01:50]} 22. Bxd3 {[%emt 0:01:24]} exd3 {[%emt 0:00:05]} 23. Qc4 {[%emt 0:02:15]} Rd4 0-1

[Event "XI Paracin Festival 2018"]
[Site "Paracin"]
[Date "2018.07.06"]
[Round "1"]
[White "Petrov, Georgi"]
[Black "Atalik, Suat"]
[Result "0-1"]
[ECO "D02"]
[WhiteElo "2213"]
[BlackElo "2512"]
[Annotator "ChessBase"]
[PlyCount "116"]
[EventDate "2018.07.06"]
[EventType "swiss"]
[EventCountry "SRB"]
[SourceTitle "playchess.com"]
[Source "ChessBase"]
[SourceQuality "1"]
[TimeControl "5400+30"]

1. Nf3 {[%emt 0:00:00]} d5 {[%emt 0:00:00]} 2. d4 {[%emt 0:00:00]} Nf6 {[%emt 0:01:03]} 3. c4 {[%emt 0:00:38]} e6 {[%emt 0:00:22]} 4. cxd5 {[%emt 0:00:26]} exd5 {[%emt 0:00:24]} 5. Nc3 {[%emt 0:00:17]} c6 {[%emt 0:00:37]} 6. Bg5 {[%emt 0:00:38]} h6 {[%emt 0:01:50]} 7. Bh4 {[%emt 0:02:50]} Bf5 {[%emt 0:00:54]} 8. e3 {[%emt 0:01:19]} Nbd7 {[%emt 0:04:49]} 9. Bd3 {[%emt 0:01:57]} Bxd3 {[%emt 0:00:09]} 10. Qxd3 {[%emt 0:00:05]} Be7 {[%emt 0:00:06]} 11. O-O {[%emt 0:01:24]} O-O {[%emt 0:00:09]} 12. Bxf6 {[%emt 0:02:02]} Bxf6 {[%emt 0:02:31]} 13. Rac1 {[%emt 0:04:57]} a5 {[%emt 0:01:57]} 14. Na4 {[%emt 0:02:54]} Re8 {[%emt 0:02:18]} 15. Nc5 {[%emt 0:09:01]} Nxc5 {[%emt 0:00:25]} 16. Rxc5 {[%emt 0:00:06]} Be7 {[%emt 0:00:16]} 17. Rc2 {[%emt 0:01:19]} a4 {[%emt 0:02:00]} 18. Qf5 {[%emt 0:06:29]} Bd6 {[%emt 0:01:54]} 19. Rfc1 {[%emt 0:06:21]} Qe7 {[%emt 0:04:43]} 20. Ne1 {[%emt 0:04:20]} g6 {[%emt 0:02:37]} 21. Qh3 {[%emt 0:02:29]} Kg7 {[%emt 0:02:28]} 22. Nd3 {[%emt 0:02:20]} h5 {[%emt 0:04:16]} 23. Nc5 {[%emt 0:05:30]} Ra5 {[%emt 0:09:33]} 24. Qf3 {[%emt 0:01:48]} h4 {[%emt 0:04:22]} 25. h3 {[%emt 0:10:00]} f5 {[%emt 0:05:13]} 26. a3 {[%emt 0:06:16]} Rf8 {[%emt 0:15:45]} 27. Rc3 {[%emt 0:03:45]} f4 {[%emt 0:04:54]} 28. Qg4 Bxc5 29. dxc5 Rb5 30. exf4 {[%emt 0:06:10]} d4 {[%emt 0:07:43]} 31. Rd3 {[%emt 0:04:03]} Rxc5 {[%emt 0:00:24]} 32. Rxc5 {[%emt 0:00:46]} Qxc5 {[%emt 0:00:08]} 33. Qd7+ {[%emt 0:01:43]} Kh6 {[%emt 0:00:17]} 34. Rxd4 {[%emt 0:07:14]} Rxf4 {[%emt 0:01:38]} 35. Rd2 {[%emt 0:00:43]} Re4 {[%emt 0:04:30]} 36. Rd1 {[%emt 0:03:16]} Re2 {[%emt 0:03:41]} 37. Qf7 {[%emt 0:00:37]} Qf5 {[%emt 0:03:07]} 38. Qxf5 {[%emt 0:00:38]} gxf5 {[%emt 0:00:03]} 39. Rd4 {[%emt 0:00:43]} Re1+ {[%emt 0:01:28]} 40. Kh2 {[%emt 0:00:09]} Re4 {[%emt 0:00:13]} 41. Rd7 {[%emt 0:01:32]} b5 {[%emt 0:00:14]} 42. Rd6+ {[%emt 0:01:18]} Kg5 {[%emt 0:00:07]} 43. Rxc6 {[%emt 0:01:08]} Re2 {[%emt 0:00:09]} 44. Rc5 {[%emt 0:00:22]} Rxb2 {[%emt 0:00:34]} 45. Kg1 {[%emt 0:00:36]} Kf4 {[%emt 0:01:54]} 46. Kf1 {[%emt 0:00:26]} b4 {[%emt 0:04:19]} 47. Ra5 {[%emt 0:00:24]} b3 {[%emt 0:01:35]} 48. Rxa4+ {[%emt 0:00:12]} Ke5 {[%emt 0:00:01]} 49. Rb4 {[%emt 0:01:47]} f4 {[%emt 0:02:33]} 50. a4 {[%emt 0:00:38]} Kd5 {[%emt 0:00:06]} 51. Ke1 {[%emt 0:00:53]} Kc5 {[%emt 0:00:34]} 52. Rb8 {[%emt 0:00:36]} Kc4 {[%emt 0:00:15]} 53. a5 {[%emt 0:00:35]} Ra2 {[%emt 0:00:20]} 54. Rc8+ {[%emt 0:00:28]} Kd3 {[%emt 0:00:48]} 55. Rd8+ {[%emt 0:00:18]} Kc2 {[%emt 0:00:11]} 56. Rc8+ {[%emt 0:00:33]} Kb1 {[%emt 0:00:10]} 57. Kd1 {[%emt 0:00:48]} b2 {[%emt 0:01:13]} 58. Rb8 Ka1 0-1